[Event "Polish University-ch Teams 2024"]
[Site "Lublin"]
[Date "2024.02.24"]
[Round "1.18"]
[White "Bednarska, Julita"]
[Black "Adamczyk, Zuzanna"]
[Result "0-1"]
[ECO "B13"]
[WhiteElo "1389"]
[BlackElo "1970"]
[Annotator "NA RC"]
[PlyCount "124"]
[EventDate "2024.02.22"]
[EventType "team-tourn"]
[EventCountry "POL"]
[SourceTitle "playchess.com"]
[Source "ChessBase"]
[SourceQuality "1"]
[TimeControl "900+5"]

1. e4 {[%emt 0:00:03]} c6 {[%emt 0:01:26]} 2. Nf3 {[%emt 0:00:04]} d5 {[%emt 0:00:02]} 3. exd5 {[%emt 0:00:02]} cxd5 {[%emt 0:00:02]} 4. d4 {[%emt 0:00:09]} Nf6 {[%emt 0:00:17]} 5. Nc3 {[%emt 0:00:18]} Bg4 {[%emt 0:00:18]} 6. Be2 {[%emt 0:00:25]} e6 {[%emt 0:00:15]} 7. O-O {[%emt 0:00:06]} Be7 {[%emt 0:00:41]} 8. h3 {[%emt 0:00:06]} Bf5 {[%emt 0:00:18]} 9. Ne5 {[%emt 0:00:45]} h6 {[%emt 0:00:32]} 10. Bd3 {[%emt 0:00:50]} Bxd3 {[%emt 0:00:36]} 11. Qxd3 {[%emt 0:00:24]} O-O {[%emt 0:00:12]} 12. Qg3 {[%emt 0:00:51]} Kh7 {[%emt 0:02:08]} 13. a3 {[%emt 0:00:49]} Nc6 {[%emt 0:00:47]} 14. Qd3+ {[%emt 0:00:58]} Kh8 {[%emt 0:00:30]} 15. Re1 {[%emt 0:00:34]} Nd7 {[%emt 0:00:51]} 16. Nxd7 {[%emt 0:00:31]} Qxd7 {[%emt 0:00:03]} 17. Bf4 {[%emt 0:00:34]} Bd6 {[%emt 0:01:25]} 18. Bxd6 {[%emt 0:00:24]} Qxd6 {[%emt 0:00:01]} 19. Re3 {[%emt 0:00:15]} Ne7 {[%emt 0:00:59]} 20. Rae1 {[%emt 0:00:40]} Nf5 {[%emt 0:00:09]} 21. R3e2 {[%emt 0:00:37]} Rfd8 {[%emt 0:00:43]} 22. Nd1 {[%emt 0:00:20]} a6 {[%emt 0:00:23]} 23. c3 {[%emt 0:00:06]} b5 {[%emt 0:00:20]} 24. Ne3 {[%emt 0:00:23]} Ne7 {[%emt 0:00:26]} 25. Nf1 {[%emt 0:00:50]} Nc8 {[%emt 0:00:55]} 26. Nd2 {[%emt 0:00:33]} Nb6 {[%emt 0:00:03]} 27. b4 {[%emt 0:00:26]} Nc4 {[%emt 0:00:45]} 28. Nxc4 {[%emt 0:00:16]} bxc4 {[%emt 0:00:04]} 29. Qf3 {[%emt 0:00:36]} Qd7 {[%emt 0:00:03]} 30. Ra1 {[%emt 0:00:31]} a5 {[%emt 0:00:02]} 31. Rea2 {[%emt 0:00:21]} Rdb8 {[%emt 0:00:15]} 32. Qe2 {[%emt 0:00:44]} Qa4 {[%emt 0:00:21]} 33. Qc2 {[%emt 0:00:56]} Qxc2 {[%emt 0:00:05]} 34. Rxc2 {[%emt 0:00:02]} axb4 {[%emt 0:00:05]} 35. cxb4 {[%emt 0:00:06]} Rxb4 {[%emt 0:00:04]} 36. Rc3 {[%emt 0:00:06]} Rb2 {[%emt 0:00:24]} 37. a4 {[%emt 0:00:26]} Ra5 {[%emt 0:00:38]} 38. Kf1 {[%emt 0:00:13]} Rb3 {[%emt 0:00:21]} 39. Rxb3 {[%emt 0:00:23]} cxb3 {[%emt 0:00:01]} 40. Rb1 {[%emt 0:00:02]} Rxa4 {[%emt 0:00:05]} 41. Rxb3 {[%emt 0:00:02]} Rxd4 {[%emt 0:00:03]} 42. Rb8+ {[%emt 0:00:05]} Kh7 {[%emt 0:00:03]} 43. Rb7 {[%emt 0:00:01]} Kg6 {[%emt 0:00:01]} 44. Rb2 {[%emt 0:00:03]} Rc4 {[%emt 0:00:12]} 45. Ke2 {[%emt 0:00:07]} Rc6 {[%emt 0:00:07]} 46. Rd2 {[%emt 0:00:03]} Rd6 {[%emt 0:00:03]} 47. f4 {[%emt 0:00:15]} f6 {[%emt 0:00:11]} 48. g3 {[%emt 0:00:01]} e5 {[%emt 0:00:03]} 49. Kf3 {[%emt 0:00:06]} h5 {[%emt 0:00:10]} 50. fxe5 {[%emt 0:00:23]} fxe5 {[%emt 0:00:02]} 51. g4 {[%emt 0:00:03]} hxg4+ {[%emt 0:00:07]} 52. hxg4 {[%emt 0:00:01]} Kg5 {[%emt 0:00:06]} 53. Re2 {[%emt 0:00:08]} e4+ {[%emt 0:00:03]} 54. Kg3 {[%emt 0:00:01]} Kf6 {[%emt 0:00:08]} 55. Rf2+ {[%emt 0:00:04]} Ke6 {[%emt 0:00:08]} 56. Kf4 {[%emt 0:00:17]} Rd8 {[%emt 0:00:04]} 57. Re2 {[%emt 0:00:06]} Rf8+ {[%emt 0:00:05]} 58. Ke3 {[%emt 0:00:07]} Ke5 {[%emt 0:00:02]} 59. Rc2 {[%emt 0:00:05]} d4+ {[%emt 0:00:03]} 60. Kd2 {[%emt 0:00:03]} Rf2+ {[%emt 0:00:02]} 61. Kd1 {[%emt 0:00:02]} Rxc2 {[%emt 0:00:02]} 62. Kxc2 {[%emt 0:00:01]} Kf4 {[%emt 0:00:01]} 0-1

[Event "Polish University-ch Teams 2024"]
[Site "Lublin"]
[Date "2024.02.24"]
[Round "1.19"]
[White "Gluch, Pawel"]
[Black "Dzida, Kamil"]
[Result "0-1"]
[ECO "B31"]
[WhiteElo "1695"]
[BlackElo "2403"]
[Annotator "TA"]
[PlyCount "54"]
[EventDate "2024.02.22"]
[EventType "team-tourn"]
[EventCountry "POL"]
[SourceTitle "playchess.com"]
[Source "ChessBase"]
[SourceQuality "1"]
[TimeControl "900+5"]

{[%evp 9,53,35,43,21,41,16,27,7,7,-5,0,-5,-2,-5,12,8,4,-8,0,-21,-19,-20,-22,-18,-20,-22,-32,-87,-57,-57,-54,-172,-32,-206,-203,-284,-251,-1054,-989,-5426,-5402,-5365,-2875,-29998,-29999,-29999]} 1. e4 {[%emt 0:00:01]} c5 {[%emt 0:00:01]} 2. Be2 {[%emt 0:00:02]} Nc6 {[%emt 0:00:03][%cal Bb8c6,Bc6d4,Bd4e2][%mdl 32]} 3. f4 {[%emt 0:00:01]} Nd4 {[%emt 0:00:28]} 4. Nf3 {[%emt 0:00:05]} Nxe2 {[%emt 0:00:06]} 5. Qxe2 {[%emt 0:00:02]} d6 {[%emt 0:00:02]} 6. O-O {[%emt 0:00:17]} e6 {[%emt 0:00:06]} 7. c3 {[%emt 0:00:01]} Nf6 {[%emt 0:00:06]} 8. d4 {[%emt 0:00:04] White has an edge.} cxd4 {[%emt 0:00:11]} 9. cxd4 {[%emt 0:00:04]} Be7 {[%emt 0:00:03]} 10. Nc3 {[%emt 0:00:02]} O-O {[%emt 0:00:06]} 11. e5 {[%emt 0:00:49]} Nd5 {[%emt 0:00:17]} 12. Nxd5 {[%emt 0:00:05]} exd5 {[%emt 0:00:02]} 13. Be3 {[%emt 0:02:54]} Bf5 {[%emt 0:00:14]} 14. Rac1 {[%emt 0:00:16]} Qa5 {[%emt 0:00:34]} 15. a3 {[%emt 0:00:21]} Rac8 {[%emt 0:00:39]} 16. h3 {[%emt 0:00:13]} Qb6 {[%emt 0:01:53]} 17. g4 {[%emt 0:02:34]} Be4 {[%emt 0:00:01]} 18. f5 {[%emt 0:00:54]} (18. b4 $15) 18... Qb3 {[%emt 0:00:05] Threatens to win with ...dxe5. Black is more active.} (18... Bxf3 {simplifies} 19. Qxf3 dxe5 20. dxe5 Qxb2 21. Qxd5 Qxa3 22. Qd4 a5) 19. Rxc8 {[%emt 0:01:43]} Rxc8 {[%emt 0:00:02]} 20. Nd2 {[%emt 0:00:37]} (20. f6 $1 $15 Bd8 (20... gxf6 21. exf6 Bd8 22. Qf2 $11) 21. Qf2) 20... Qd3 {[%emt 0:01:11]} (20... Qxb2 $19 21. f6 gxf6 22. exf6 Bf8) 21. Qf2 $2 {[%emt 0:00:31] This move loses the game for White.} ({Better is} 21. Qxd3 $15 Bxd3 22. Rd1) 21... dxe5 $19 {[%emt 0:00:57] White is weak on the light squares} 22. dxe5 {[%emt 0:00:30][%cal Od2e4] [#]} Rc2 $1 {[%emt 0:00:12][%cal Oe7c5] And now ...Bc5! would win.} 23. Rd1 $2 {[%emt 0:03:01]} (23. Re1) 23... d4 {[%emt 0:01:19]} 24. Bf4 {[%emt 0:00:42]} Qxh3 {[%emt 0:00:19][%csl Ge4][%cal Rh3h1]} 25. Nxe4 {[%emt 0:00:11]} Qxg4+ {[%emt 0:00:12]} 26. Qg3 {[%emt 0:00:17]} Qxd1+ {[%emt 0:00:03]} 27. Qe1 {[%emt 0:00:01]} Qxe1# {[%emt 0:00:01] Weighted Error Value: White=1.03/Black=0.18 (very precise) .  Loses game:     	White=1     	---        Mistake:       	White=3     	Black=1      Inaccurate:     	White=2     	Black=1      OK:         	White=5     	Black=6      Strong:       	---       	Black=1} 0-1

[Event "Polish University-ch Teams 2024"]
[Site "Lublin"]
[Date "2024.02.24"]
[Round "1.20"]
[White "Golenia, Jan"]
[Black "Drygas, Wojciech"]
[Result "0-1"]
[ECO "E11"]
[WhiteElo "2221"]
[BlackElo "1630"]
[Annotator "RC"]
[PlyCount "82"]
[EventDate "2024.02.22"]
[EventType "team-tourn"]
[EventCountry "POL"]
[SourceTitle "playchess.com"]
[Source "ChessBase"]
[SourceQuality "1"]
[TimeControl "900+5"]

1. d4 {[%emt 0:00:08]} Nf6 {[%emt 0:00:04]} 2. c4 {[%emt 0:00:03]} e6 {[%emt 0:00:01]} 3. Nf3 {[%emt 0:00:05]} Bb4+ {[%emt 0:00:01]} 4. Bd2 {[%emt 0:00:02]} Qe7 {[%emt 0:00:01]} 5. g3 {[%emt 0:00:19]} Nc6 {[%emt 0:00:02]} 6. Bg2 {[%emt 0:00:44]} Bxd2+ {[%emt 0:00:03]} 7. Nbxd2 {[%emt 0:00:03]} O-O {[%emt 0:00:02]} 8. O-O {[%emt 0:00:26]} d6 {[%emt 0:00:01]} 9. e4 {[%emt 0:00:45]} e5 {[%emt 0:00:03]} 10. d5 {[%emt 0:00:29]} Nb8 {[%emt 0:00:01]} 11. b4 {[%emt 0:00:46]} a5 {[%emt 0:00:09]} 12. a3 {[%emt 0:00:35]} Na6 {[%emt 0:00:01]} 13. Qb3 {[%emt 0:02:36]} Bd7 {[%emt 0:00:42]} 14. Rfc1 {[%emt 0:00:39]} c6 {[%emt 0:00:16]} 15. Ne1 {[%emt 0:01:48]} cxd5 {[%emt 0:00:14]} 16. cxd5 {[%emt 0:00:05]} axb4 {[%emt 0:00:01]} 17. axb4 {[%emt 0:00:03]} Bb5 {[%emt 0:00:01]} 18. Ra5 {[%emt 0:01:26]} Qd7 {[%emt 0:02:47]} 19. Rca1 {[%emt 0:01:28]} Nc7 {[%emt 0:01:16]} 20. Nc4 {[%emt 0:00:15]} Bxc4 {[%emt 0:00:22]} 21. Qxc4 {[%emt 0:00:03]} Rfc8 {[%emt 0:00:18]} 22. Qb3 {[%emt 0:01:38]} h6 {[%emt 0:01:44]} 23. Nc2 {[%emt 0:01:10]} Rxa5 {[%emt 0:01:52]} 24. Rxa5 {[%emt 0:00:01]} Nb5 {[%emt 0:00:11]} 25. Bf1 {[%emt 0:00:25]} Nc3 {[%emt 0:00:29]} 26. f3 {[%emt 0:00:13]} Qc7 {[%emt 0:00:07]} 27. Ne3 {[%emt 0:00:23]} Qb6 {[%emt 0:00:15]} 28. Kf2 {[%emt 0:00:01]} Nfxe4+ {[%emt 0:00:53]} 29. fxe4 {[%emt 0:00:05]} Nxe4+ {[%emt 0:00:01]} 30. Kg2 {[%emt 0:00:36]} Rc3 {[%emt 0:00:03]} 31. Qb1 {[%emt 0:00:13]} Qxe3 {[%emt 0:00:07]} 32. Ra2 {[%emt 0:00:01]} g6 {[%emt 0:00:56]} 33. Re2 {[%emt 0:00:05]} Qf3+ {[%emt 0:00:03]} 34. Kg1 {[%emt 0:00:01]} Ng5 {[%emt 0:00:32]} 35. Qd1 {[%emt 0:00:07]} Re3 {[%emt 0:00:18]} 36. Rd2 {[%emt 0:00:02]} Qe4 {[%emt 0:00:25]} 37. Qc2 {[%emt 0:00:06]} Nf3+ {[%emt 0:00:04]} 38. Kf2 {[%emt 0:00:01]} Nxd2 {[%emt 0:00:03]} 39. Qxd2 {[%emt 0:00:03]} Rf3+ {[%emt 0:00:22]} 40. Kg1 {[%emt 0:00:01]} Qe3+ {[%emt 0:00:04]} 41. Qxe3 {[%emt 0:00:01]} Rxe3 {[%emt 0:00:02]} 0-1

[Event "Polish University-ch Teams 2024"]
[Site "Lublin"]
[Date "2024.02.24"]
[Round "1.21"]
[White "Klok, Kacper"]
[Black "Golenia, Wojciech"]
[Result "0-1"]
[ECO "E32"]
[WhiteElo "1480"]
[BlackElo "2212"]
[Annotator "RC"]
[PlyCount "46"]
[EventDate "2024.02.22"]
[EventType "team-tourn"]
[EventCountry "POL"]
[SourceTitle "playchess.com"]
[Source "ChessBase"]
[SourceQuality "1"]
[TimeControl "900+5"]

1. d4 {[%emt 0:00:12]} Nf6 {[%emt 0:00:03]} 2. c4 {[%emt 0:00:10]} e6 {[%emt 0:00:02]} 3. Nc3 {[%emt 0:00:14]} Bb4 {[%emt 0:00:15]} 4. Qc2 {[%emt 0:00:34]} O-O {[%emt 0:00:08]} 5. Bg5 {[%emt 0:00:43]} d5 {[%emt 0:01:40]} 6. e3 {[%emt 0:00:18]} Nbd7 {[%emt 0:03:04]} 7. Nf3 {[%emt 0:04:51]} dxc4 {[%emt 0:02:06]} 8. Bxc4 {[%emt 0:00:27]} a6 {[%emt 0:00:02]} 9. O-O {[%emt 0:00:08]} h6 {[%emt 0:00:18]} 10. Bh4 {[%emt 0:00:04]} b5 {[%emt 0:01:18]} 11. Bd3 {[%emt 0:01:42]} Bb7 {[%emt 0:00:05]} 12. a3 {[%emt 0:03:09]} Be7 {[%emt 0:02:25]} 13. Bg3 {[%emt 0:00:12]} c5 {[%emt 0:00:11]} 14. Rad1 {[%emt 0:00:26]} Qb6 {[%emt 0:00:56]} 15. Ne4 {[%emt 0:02:13]} Rac8 {[%emt 0:00:51]} 16. Qb1 {[%emt 0:00:04]} c4 {[%emt 0:00:18]} 17. Bc2 {[%emt 0:00:25]} Rfd8 {[%emt 0:00:11]} 18. Nc3 {[%emt 0:00:06]} a5 {[%emt 0:00:12]} 19. e4 {[%emt 0:00:19]} b4 {[%emt 0:00:15]} 20. axb4 {[%emt 0:00:12]} axb4 {[%emt 0:00:02]} 21. Na4 {[%emt 0:00:05]} Qb5 {[%emt 0:00:33]} 22. b3 {[%emt 0:00:10]} cxb3 {[%emt 0:00:06]} 23. Qxb3 {[%emt 0:00:03]} Nxe4 {[%emt 0:00:18]} 0-1

[Event "Polish University-ch Teams 2024"]
[Site "Lublin"]
[Date "2024.02.24"]
[Round "1.22"]
[White "Musial, Tomasz"]
[Black "Polak, Sylwia"]
[Result "1-0"]
[ECO "C02"]
[WhiteElo "2171"]
[BlackElo "1565"]
[Annotator "RC"]
[PlyCount "71"]
[EventDate "2024.02.22"]
[EventType "team-tourn"]
[EventCountry "POL"]
[SourceTitle "playchess.com"]
[Source "ChessBase"]
[SourceQuality "1"]
[TimeControl "900+5"]

1. e4 {[%emt 0:00:02]} e6 {[%emt 0:00:01]} 2. d4 {[%emt 0:00:02]} d5 {[%emt 0:00:01]} 3. e5 {[%emt 0:00:01]} c5 {[%emt 0:00:01]} 4. c3 {[%emt 0:00:01]} Nc6 {[%emt 0:00:01]} 5. Nf3 {[%emt 0:00:03]} Bd7 {[%emt 0:00:01]} 6. Be2 {[%emt 0:00:03]} Qb6 {[%emt 0:00:02]} 7. O-O {[%emt 0:00:23]} cxd4 {[%emt 0:00:11]} 8. cxd4 {[%emt 0:00:02]} Nh6 {[%emt 0:00:06]} 9. Nc3 {[%emt 0:00:58]} Nf5 {[%emt 0:00:44]} 10. Na4 {[%emt 0:00:19]} Qa5 {[%emt 0:00:28]} 11. Bd2 {[%emt 0:00:08]} Qd8 {[%emt 0:00:01]} 12. Bc3 {[%emt 0:00:25]} Be7 {[%emt 0:01:09]} 13. a3 {[%emt 0:01:06]} O-O {[%emt 0:00:23]} 14. b4 {[%emt 0:00:11]} Rc8 {[%emt 0:00:43]} 15. Rc1 {[%emt 0:01:37]} f6 {[%emt 0:02:37]} 16. exf6 {[%emt 0:03:50]} Bxf6 {[%emt 0:00:05]} 17. Nc5 {[%emt 0:00:03]} b6 {[%emt 0:00:24]} 18. Nb3 {[%emt 0:00:03]} Nd6 {[%emt 0:01:22]} 19. Ne5 {[%emt 0:01:14]} Ne4 {[%emt 0:00:27]} 20. Bb2 {[%emt 0:00:55]} Bg5 {[%emt 0:01:13]} 21. Rc2 {[%emt 0:00:02]} Qe7 {[%emt 0:02:25]} 22. Ba6 {[%emt 0:00:47]} Nxe5 {[%emt 0:01:45]} 23. Bxc8 {[%emt 0:00:30]} Nc4 {[%emt 0:01:18]} 24. Bxd7 {[%emt 0:00:18]} Qxd7 {[%emt 0:00:01]} 25. Bc1 {[%emt 0:00:18]} Bd8 {[%emt 0:00:54]} 26. f3 {[%emt 0:00:34]} Ned6 {[%emt 0:00:05]} 27. Qd3 {[%emt 0:00:30]} Bc7 {[%emt 0:00:11]} 28. Nd2 {[%emt 0:00:16]} Qf7 {[%emt 0:00:20]} 29. Nxc4 {[%emt 0:00:14]} Nxc4 {[%emt 0:00:01]} 30. Qe2 {[%emt 0:00:31]} Qf5 {[%emt 0:00:12]} 31. Re1 {[%emt 0:00:23]} Re8 {[%emt 0:00:04]} 32. Rc3 {[%emt 0:00:51]} Qf6 {[%emt 0:00:02]} 33. Rd3 {[%emt 0:00:09]} Qh4 {[%emt 0:00:04]} 34. f4 {[%emt 0:00:10]} Bxf4 {[%emt 0:00:04]} 35. g3 {[%emt 0:00:09]} Bxg3 {[%emt 0:00:07]} 36. hxg3 {[%emt 0:00:01]} 1-0

[Event "Polish University-ch Teams 2024"]
[Site "Lublin"]
[Date "2024.02.24"]
[Round "1.23"]
[White "Szpila, Piotr"]
[Black "Babiarz, Arkadiusz"]
[Result "0-1"]
[ECO "B43"]
[WhiteElo "1484"]
[BlackElo "2159"]
[Annotator "RC"]
[PlyCount "87"]
[EventDate "2024.02.22"]
[EventType "team-tourn"]
[EventCountry "POL"]
[SourceTitle "playchess.com"]
[Source "ChessBase"]
[SourceQuality "1"]
[TimeControl "900+5"]

1. e4 {[%emt 0:00:03]} c5 {[%emt 0:00:01]} 2. Nf3 {[%emt 0:00:01]} e6 {[%emt 0:00:01]} 3. d4 {[%emt 0:00:04]} cxd4 {[%emt 0:00:01]} 4. Nxd4 {[%emt 0:00:02]} a6 {[%emt 0:00:01]} 5. Nc3 {[%emt 0:00:03]} Qc7 {[%emt 0:00:04]} 6. Bd3 {[%emt 0:00:10]} Nf6 {[%emt 0:00:05]} 7. h3 {[%emt 0:00:08]} b5 {[%emt 0:00:02]} 8. O-O {[%emt 0:00:28]} Bb7 {[%emt 0:00:03]} 9. a3 {[%emt 0:00:09]} d6 {[%emt 0:00:07]} 10. Re1 {[%emt 0:01:55]} Nbd7 {[%emt 0:00:02]} 11. Bd2 {[%emt 0:01:22]} Be7 {[%emt 0:00:06]} 12. Qf3 {[%emt 0:02:38]} Ne5 {[%emt 0:01:25]} 13. Qg3 {[%emt 0:00:23]} Nh5 {[%emt 0:00:03]} 14. Qe3 {[%emt 0:00:46]} Nc4 {[%emt 0:00:06]} 15. Bxc4 {[%emt 0:00:03]} Qxc4 {[%emt 0:00:03]} 16. Qd3 {[%emt 0:00:19]} Rc8 {[%emt 0:00:49]} 17. Rac1 {[%emt 0:00:51]} Nf6 {[%emt 0:00:16]} 18. Nb3 {[%emt 0:01:13]} Qc7 {[%emt 0:00:21]} 19. Qg3 {[%emt 0:00:47]} O-O {[%emt 0:01:10]} 20. Bh6 {[%emt 0:01:32]} Ne8 {[%emt 0:00:02]} 21. Rcd1 {[%emt 0:00:13]} Bf6 {[%emt 0:00:36]} 22. Rd3 {[%emt 0:00:23]} d5 {[%emt 0:02:03]} 23. e5 {[%emt 0:00:19]} Be7 {[%emt 0:00:02]} 24. Bg5 {[%emt 0:00:02]} b4 {[%emt 0:01:01]} 25. Bxe7 {[%emt 0:01:37]} Qxe7 {[%emt 0:00:02]} 26. axb4 {[%emt 0:00:16]} Qxb4 {[%emt 0:00:04]} 27. Rd4 {[%emt 0:00:05]} Rc4 {[%emt 0:00:25]} 28. Red1 {[%emt 0:00:14]} a5 {[%emt 0:00:34]} 29. Qe3 {[%emt 0:01:05]} a4 {[%emt 0:01:39]} 30. Na2 {[%emt 0:00:11]} Qb5 {[%emt 0:01:26]} 31. Rxc4 {[%emt 0:00:04]} Qxc4 {[%emt 0:00:26]} 32. Nbc1 {[%emt 0:00:01]} Qxc2 {[%emt 0:00:20]} 33. Qd2 {[%emt 0:00:05]} Qg6 {[%emt 0:00:20]} 34. Qb4 {[%emt 0:00:15]} Bc6 {[%emt 0:01:42]} 35. Qc3 {[%emt 0:00:07]} Bb5 {[%emt 0:00:14]} 36. Rd4 {[%emt 0:00:03]} Bc4 {[%emt 0:00:07]} 37. Rg4 {[%emt 0:00:06]} Qb1 {[%emt 0:00:12]} 38. Nb4 {[%emt 0:00:01]} f5 {[%emt 0:00:44]} 39. exf6 {[%emt 0:00:09]} Nxf6 {[%emt 0:00:06]} 40. Rg3 {[%emt 0:00:02]} Qe4 {[%emt 0:00:50]} 41. Ncd3 {[%emt 0:00:08]} Bxd3 {[%emt 0:00:21]} 42. Nxd3 {[%emt 0:00:03]} d4 {[%emt 0:00:03]} 43. Qc7 {[%emt 0:00:04]} g6 {[%emt 0:00:17]} 44. Ne5 {[%emt 0:00:15]} 0-1

[Event "Polish University-ch Teams 2024"]
[Site "Lublin"]
[Date "2024.02.24"]
[Round "1.24"]
[White "Giefert, Sara"]
[Black "Jakubowska, Urszula"]
[Result "1-0"]
[ECO "D00"]
[WhiteElo "1704"]
[BlackElo "1352"]
[Annotator "NA RC"]
[PlyCount "51"]
[EventDate "2024.02.22"]
[EventType "team-tourn"]
[EventCountry "POL"]
[SourceTitle "playchess.com"]
[Source "ChessBase"]
[SourceQuality "1"]
[TimeControl "900+5"]

1. d4 {[%emt 0:00:02]} Nf6 {[%emt 0:00:04]} 2. Bg5 {[%emt 0:00:02]} e6 {[%emt 0:00:07]} 3. e3 {[%emt 0:00:02]} Be7 {[%emt 0:00:02]} 4. Bd3 {[%emt 0:00:02]} d5 {[%emt 0:00:06]} 5. Nd2 {[%emt 0:00:03]} Nbd7 {[%emt 0:00:04]} 6. f4 {[%emt 0:00:06]} c5 {[%emt 0:00:05]} 7. c3 {[%emt 0:00:02]} b6 {[%emt 0:01:10]} 8. Ngf3 {[%emt 0:00:07]} Bb7 {[%emt 0:00:08]} 9. O-O {[%emt 0:00:59]} h6 {[%emt 0:00:39]} 10. Bh4 {[%emt 0:00:02]} Ne4 {[%emt 0:01:48]} 11. Bxe7 {[%emt 0:00:15]} Qxe7 {[%emt 0:00:03]} 12. Ne5 {[%emt 0:00:37]} Ndf6 {[%emt 0:03:22]} 13. Bb5+ {[%emt 0:00:32]} Kf8 {[%emt 0:00:59]} 14. f5 {[%emt 0:01:14]} a6 {[%emt 0:00:44]} 15. Bd3 {[%emt 0:00:22]} Nxd2 {[%emt 0:00:54]} 16. Qxd2 {[%emt 0:00:05]} Nd7 {[%emt 0:00:10]} 17. Ng4 {[%emt 0:03:34]} Nf6 {[%emt 0:01:13]} 18. fxe6 {[%emt 0:00:23]} Qxe6 {[%emt 0:01:03]} 19. Ne5 {[%emt 0:00:28]} Ke7 {[%emt 0:01:33]} 20. Rae1 {[%emt 0:00:58]} Rhf8 {[%emt 0:00:06]} 21. Qf2 {[%emt 0:00:50]} Ng4 {[%emt 0:00:53]} 22. Qh4+ {[%emt 0:00:11]} Nf6 {[%emt 0:00:25]} 23. Rf2 {[%emt 0:00:30]} Kd6 {[%emt 0:00:30]} 24. Ref1 {[%emt 0:00:26]} Bc8 {[%emt 0:00:43]} 25. Rxf6 {[%emt 0:00:08]} gxf6 {[%emt 0:00:03]} 26. Rxf6 {[%emt 0:00:02]} 1-0

[Event "Polish University-ch Teams 2024"]
[Site "Lublin"]
[Date "2024.02.24"]
[Round "2.1"]
[White "Watorek, Marcin"]
[Black "Janik, Igor"]
[Result "0-1"]
[ECO "A42"]
[WhiteElo "2018"]
[BlackElo "2499"]
[Annotator "ChessBase"]
[PlyCount "76"]
[EventDate "2024.02.22"]
[EventType "team-tourn"]
[EventCountry "POL"]
[SourceTitle "playchess.com"]
[Source "ChessBase"]
[SourceQuality "1"]
[TimeControl "900+5"]

1. d4 {[%emt 0:00:03]} g6 {[%emt 0:00:01]} 2. c4 {[%emt 0:00:02]} Bg7 {[%emt 0:00:02]} 3. e4 {[%emt 0:00:05]} d6 {[%emt 0:00:04]} 4. Nc3 {[%emt 0:00:06]} Nc6 {[%emt 0:00:16]} 5. d5 {[%emt 0:00:11]} Nd4 {[%emt 0:00:06]} 6. Be3 {[%emt 0:00:17]} c5 {[%emt 0:00:02]} 7. dxc6 {[%emt 0:00:21]} Nxc6 {[%emt 0:00:02]} 8. Nf3 {[%emt 0:00:11]} Bg4 {[%emt 0:00:17]} 9. Be2 {[%emt 0:00:04]} Bxf3 {[%emt 0:00:07]} 10. Bxf3 {[%emt 0:00:08]} Nf6 {[%emt 0:00:02]} 11. O-O {[%emt 0:00:11]} O-O {[%emt 0:00:02]} 12. Rc1 {[%emt 0:00:03]} Nd7 {[%emt 0:00:07]} 13. Be2 {[%emt 0:00:39]} Nc5 {[%emt 0:00:11]} 14. f3 {[%emt 0:00:25]} Ne6 {[%emt 0:00:09]} 15. Re1 {[%emt 0:00:48]} Ned4 {[%emt 0:00:10]} 16. Nb5 {[%emt 0:00:33]} Ne6 {[%emt 0:00:02]} 17. Rc2 {[%emt 0:01:18]} Qa5 {[%emt 0:00:14]} 18. a3 {[%emt 0:01:24]} Rfc8 {[%emt 0:00:12]} 19. b4 {[%emt 0:01:24]} Qd8 {[%emt 0:00:12]} 20. Nc3 {[%emt 0:04:17]} Ncd4 {[%emt 0:00:45]} 21. Rc1 {[%emt 0:00:08]} a5 {[%emt 0:00:16]} 22. Nd5 {[%emt 0:00:40]} axb4 {[%emt 0:00:04]} 23. axb4 {[%emt 0:00:03]} Ra3 {[%emt 0:00:54]} 24. f4 {[%emt 0:00:24]} Rxe3 {[%emt 0:01:26]} 25. Nxe3 {[%emt 0:00:02]} Nxf4 {[%emt 0:00:02]} 26. Bg4 {[%emt 0:00:27]} Ra8 {[%emt 0:00:08]} 27. Nd5 {[%emt 0:00:31]} Nxd5 {[%emt 0:00:17]} 28. cxd5 {[%emt 0:00:03]} h5 {[%emt 0:00:11]} 29. Bh3 {[%emt 0:00:50]} Be5 {[%emt 0:00:46]} 30. Rf1 {[%emt 0:00:19]} Qb6 {[%emt 0:00:25]} 31. Kh1 {[%emt 0:00:01]} Ra2 {[%emt 0:00:20]} 32. Rc8+ {[%emt 0:00:52]} Kg7 {[%emt 0:00:01]} 33. Qb1 {[%emt 0:00:01]} Qa7 {[%emt 0:01:48]} 34. Rc7 {[%emt 0:00:22]} Ne2 {[%emt 0:08:14]} 35. Rxe7 {[%emt 0:00:12]} Ra1 {[%emt 0:00:00]} 36. Rfxf7+ {[%emt 0:00:25]} Kh6 {[%emt 0:00:00]} 37. Rh7+ {[%emt 0:00:04]} Kg5 {[%emt 0:00:00]} 38. Rxe5+ {[%emt 0:00:13]} dxe5 {[%emt 0:00:00]} 0-1